bitfinex/quotes_ETHUSD_20250625
["timestamp","ask_amount","ask_price","bid_price","bid_amount"]
[1750871359157,15.13577365,2411.1,2410.9,4.14782861]
[1750871359158,1.803,2411.0,2410.9,4.14782861]
[1750871359458,1.803,2411.0,2410.8,4.14791478]
[1750871359661,10.9882,2411.1,2410.9,4.14782861]
[1750871359863,12.584,2411.1,2411.0,4.14765657]
[1750871360163,0.2072,2411.4,2411.3,4.14714054]
[1750871360331,2.0102,2411.6,2411.5,4.14671064]
[1750871360527,1.803,2411.7,2411.6,4.14662464]
[1750871360751,1.803,2411.7,2411.5,4.14671405]
[1750871360945,1.803,2411.7,2411.3,0.9978]
[1750871361258,1.803,2411.7,2411.3,5.14485836]
[1750871361771,1.803,2411.7,2411.4,4.14689408]
[1750871362073,1.803,2411.7,2411.5,4.14672263]
[1750871362270,1.803,2411.7,2411.4,4.14688106]
[1750871362632,0.4287,2411.6,2411.2,4.14730249]
[1750871362935,0.2072,2411.5,2411.1,4.35461119]
[1750871363353,0.2072,2411.5,2411.2,4.14729418]
[1750871363673,0.2072,2411.5,2411.1,4.35461432]
[1750871363850,0.2072,2411.5,2411.1,0.2072]
[1750871364056,0.2072,2411.5,2411.1,4.35456464]
[1750871364376,0.2072,2411.5,2411.2,4.14727168]
[1750871364573,0.2072,2411.5,2411.1,4.35464687]
[1750871364783,7.50755348,2411.5,2411.1,0.2072]
[1750871364991,0.6359,2411.1,2410.7,4.14809577]
[1750871365158,1.803,2411.0,2410.7,4.14801504]
[1750871365340,2.0102,2411.0,2410.7,4.14801504]
[1750871365546,2.0102,2411.0,2410.8,4.14794645]
[1750871365771,2.0102,2411.0,2410.9,4.14782861]
[1750871366905,1.803,2411.0,2410.9,4.97741053]
[1750871367778,0.2072,2411.2,2411.1,4.14748455]
[1750871367953,1.803,2411.4,2411.1,4.35468455]
[1750871368144,1.803,2411.4,2411.2,4.14726287]
[1750871368795,1.803,2411.4,2411.1,4.35458865]
[1750871369386,1.803,2411.4,2411.2,4.14730407]
[1750871370348,1.803,2411.4,2411.2,4.14718329]
[1750871370767,1.803,2411.4,2411.2,4.1472402]
[1750871370980,1.803,2411.4,2411.1,4.35459489]
[1750871371259,1.803,2411.4,2411.2,4.14730289]
[1750871371470,1.803,2411.4,2411.1,4.14748088]
[1750871371671,2.0102,2411.4,2411.1,4.14748088]
[1750871372559,0.4287,2410.9,2410.4,4.95995836]
[1750871372771,1.803,2410.8,2410.2,0.8113]
[1750871372971,4.1482881,2410.7,2410.2,4.96024544]
[1750871373382,4.1484105,2410.6,2410.2,0.8113]
[1750871373589,1.803,2410.8,2409.6,4.9613664]
[1750871373789,4.14826697,2410.7,2409.7,4.64602258]
[1750871374082,4.14826697,2410.7,2410.2,4.14894747]
[1750871374684,6.85935943,2410.8,2410.3,4.14885521]
[1750871375208,5.95101014,2410.8,2410.3,4.14876669]
[1750871375408,0.4287,2410.9,2410.3,4.14876669]
[1750871375703,1.803,2410.8,2410.5,4.14851156]
[1750871375898,0.4287,2410.9,2410.5,4.14851156]
[1750871376068,1.803,2410.8,2410.4,4.1485984]
[1750871376273,1.803,2410.8,2410.4,4.97833491]
[1750871376469,1.803,2410.8,2410.5,4.1485139]
[1750871378007,1.803,2410.8,2410.4,4.97835779]
[1750871378810,1.803,2410.8,2410.4,4.97839405]
[1750871378975,1.803,2410.8,2410.1,4.9376664]
[1750871379175,10.0,2410.9,2410.6,4.14824962]
[1750871379415,1.803,2410.9,2410.7,4.14808345]
[1750871379908,1.803,2411.0,2410.9,4.14774194]
[1750871380710,10.779,2411.1,2410.6,0.8143]
[1750871380913,12.582,2411.1,2411.0,4.14765657]
[1750871381081,12.582,2411.1,2410.9,4.14775578]
[1750871381397,10.779,2411.1,2411.0,4.14765657]
[1750871382182,0.4287,2411.0,2409.9,0.7829]
[1750871382386,0.4287,2410.6,2409.9,0.7829]
[1750871382580,6.15875016,2410.5,2410.1,0.2072]
[1750871382789,4.1486907,2410.4,2410.1,0.2072]
[1750871382990,4.14872627,2410.4,2410.1,0.2072]
[1750871383201,4.14886974,2410.3,2410.1,0.2072]
[1750871383403,4.14891941,2410.3,2410.1,0.2072]
[1750871383917,4.14903327,2410.2,2410.1,0.2072]
[1750871384516,4.14937759,2410.0,2409.9,0.2072]
[1750871384822,4.78479928,2410.3,2409.9,0.2072]
[1750871385720,0.6359,2410.3,2409.9,4.35673174]
[1750871386135,1.803,2410.8,2410.1,0.55]
[1750871386432,1.803,2410.8,2410.2,4.35618728]
[1750871386732,5.95108575,2410.8,2410.4,0.2072]
[1750871386941,1.803,2410.8,2410.4,0.2072]
[1750871387534,1.803,2410.8,2410.4,4.35586224]
[1750871388034,1.803,2410.8,2410.5,4.9395722]
[1750871388253,1.803,2410.8,2410.6,4.1483159]
[1750871388439,1.803,2410.8,2410.6,4.3555159]
[1750871389123,1.803,2410.8,2410.5,4.93959324]
[1750871389326,1.803,2410.8,2410.5,5.14679324]
[1750871389936,1.803,2410.8,2410.5,0.9983]
[1750871390142,7.99558146,2410.8,2410.5,0.2072]
[1750871390435,3.84749451,2410.8,2410.5,0.2072]
[1750871390606,2.2317,2410.8,2410.5,0.2072]
[1750871391540,6.37973507,2410.8,2410.5,0.2072]
[1750871391740,2.2317,2410.8,2410.5,0.2072]
[1750871391942,2.2317,2410.8,2410.5,4.35571557]
[1750871392540,2.2317,2410.8,2410.5,0.2072]
[1750871393125,3.89038169,2410.8,2410.5,0.2072]
[1750871393442,3.89038169,2410.8,2410.5,4.35570724]
[1750871393673,10.0,2410.5,2409.9,0.7725]
[1750871393814,4.14914327,2410.2,2409.6,0.7725]
[1750871394013,1.823,2410.1,2409.8,4.14968615]
[1750871394324,1.823,2410.1,2409.7,4.14980088]
[1750871394536,1.823,2410.1,2409.7,4.14989417]
[1750871395235,5.97222411,2410.1,2409.6,4.92248299]
[1750871395419,3.523627,2410.1,2409.4,0.7948]
[1750871395620,4.5781514,2410.0,2409.5,4.15020669]
[1750871395820,4.14958138,2409.9,2409.4,4.94514531]
[1750871396018,4.57817406,2410.0,2409.5,4.15023796]
[1750871396225,1.22510797,2409.9,2409.6,4.15006053]
[1750871396962,6.881,2410.0,2409.8,4.14971837]
[1750871397113,1.823,2409.9,2409.8,4.14971837]
[1750871397831,1.823,2409.9,2409.6,4.15000808]
[1750871397832,1.823,2409.9,2409.7,4.14980072]
[1750871398032,1.823,2409.9,2409.8,4.14972196]
[1750871398441,0.4287,2410.4,2409.7,4.14980671]
[1750871398643,14.57713113,2410.6,2410.1,4.14905189]
[1750871398818,10.0,2410.4,2410.0,4.14928905]
[1750871399434,10.0,2410.4,2410.1,4.14919621]
[1750871400359,10.0,2410.4,2410.0,4.14928601]
[1750871400761,14.14872158,2410.4,2409.9,4.14947273]
[1750871401054,16.03609936,2410.4,2409.9,4.14947273]
[1750871401428,0.4287,2410.8,2410.0,0.7614]
[1750871401635,1.823,2410.7,2410.5,4.14850261]
[1750871402019,1.823,2410.7,2410.4,4.14860094]
[1750871402225,1.823,2410.7,2410.3,4.14877674]
[1750871402659,0.4287,2410.8,2410.5,4.14850482]
[1750871402826,1.823,2410.6,2410.4,4.14859391]
[1750871403026,1.823,2410.6,2410.3,4.14886068]
[1750871403459,1.823,2410.6,2410.4,4.14868901]
[1750871403661,1.823,2410.6,2410.5,4.1485169]
[1750871404165,1.823,2410.6,2410.4,4.14861686]
[1750871404466,1.823,2410.6,2410.5,4.1485169]
[1750871404674,1.823,2410.6,2410.4,4.95562046]
[1750871405037,1.823,2410.6,2410.3,4.35603554]
[1750871405368,1.823,2410.6,2410.4,4.14857292]
[1750871405768,1.823,2410.6,2410.5,4.1485169]
[1750871406464,1.823,2410.6,2410.4,4.14868221]
[1750871406862,1.823,2410.6,2410.3,4.35589584]
[1750871407268,1.823,2410.6,2410.4,4.14868787]
[1750871407952,1.823,2410.6,2410.3,4.3559816]
[1750871408360,1.823,2410.6,2410.4,4.14867471]
[1750871409268,1.823,2410.6,2410.5,4.1485169]
[1750871409580,10.779,2411.1,2410.6,0.8083]
[1750871409869,12.602,2411.1,2410.9,4.14772759]
[1750871410283,12.602,2411.1,2411.0,4.14765657]
[1750871410839,12.602,2411.1,2410.9,4.14773823]
[1750871411060,12.602,2411.1,2410.8,0.2072]
[1750871411362,12.602,2411.1,2411.0,4.14765657]
[1750871411768,12.602,2411.1,2410.9,4.14774276]
[1750871411963,12.602,2411.1,2410.8,0.2072]
[1750871412344,12.602,2411.1,2410.9,4.14782179]
[1750871413785,12.602,2411.1,2410.8,4.35512349]
[1750871413961,1.823,2411.1,2410.8,4.35512349]
[1750871414161,1.823,2411.1,2410.9,4.1477151]
[1750871414356,1.823,2411.1,2411.0,4.14765657]
[1750871414762,1.823,2411.1,2410.9,4.14774361]
[1750871414962,1.823,2411.1,2411.0,4.14765657]
[1750871417895,1.823,2411.1,2410.9,4.14776228]
[1750871418585,1.823,2411.1,2411.0,4.14765657]
[1750871419074,1.823,2411.1,2410.9,4.14775753]
[1750871419479,1.823,2411.1,2410.8,4.35510194]
[1750871419880,1.823,2411.1,2410.9,4.1477481]
[1750871420526,1.823,2411.1,2410.6,0.8083]
[1750871420527,4.14773495,2411.0,2410.6,0.8083]
[1750871420800,4.57707436,2410.6,2410.3,0.2072]
[1750871420984,8.67,2410.5,2410.3,0.2072]
[1750871423691,1.806,2410.5,2410.4,4.14868901]
[1750871423891,1.806,2410.7,2410.6,4.14834481]
[1750871424262,1.806,2410.7,2410.6,4.35554481]
[1750871427605,1.806,2411.1,2411.0,4.14750562]
[1750871428507,1.806,2411.1,2411.0,4.14765657]
[1750871428685,1.806,2411.1,2411.0,5.99990173]
[1750871429380,1.806,2411.1,2411.0,5.17035657]
[1750871431409,1.806,2411.1,2411.0,4.35485657]
[1750871433112,2.0122,2411.5,2411.3,4.14700813]
[1750871433348,0.2072,2411.5,2411.4,4.14696856]
[1750871433496,1.805,2412.4,2411.6,0.8187]
[1750871433678,7.813835,2413.0,2412.2,4.14559323]
[1750871433679,0.2072,2412.3,2412.2,4.14559323]
[1750871433878,0.2072,2412.6,2412.4,4.14512275]
[1750871434082,0.2072,2412.6,2412.4,4.14508741]
[1750871434481,0.2072,2412.6,2412.2,4.35269207]
[1750871434686,0.82290428,2412.6,2412.2,4.35269207]
[1750871435089,0.82290428,2412.6,2412.3,4.14540928]
[1750871435324,0.82290428,2412.6,2412.2,4.35271155]
[1750871435635,4.96785543,2412.6,2412.2,0.2072]
[1750871436236,0.4287,2412.5,2411.9,6.863]
[1750871436532,0.72613495,2412.4,2412.0,4.35312159]
[1750871436692,0.72613495,2412.4,2412.0,0.2072]
[1750871436896,4.8714614,2412.4,2412.0,0.2072]
[1750871437317,0.72613495,2412.4,2412.0,0.2072]
[1750871437930,4.14542138,2412.3,2412.0,0.2072]
[1750871438597,0.72613495,2412.4,2412.0,0.2072]
[1750871438811,4.14543995,2412.3,2412.0,0.2072]
[1750871440128,4.87145925,2412.4,2412.0,0.2072]
[1750871440422,0.2072,2412.4,2412.2,4.14559323]
[1750871440642,1.805,2412.7,2412.6,4.14490591]
[1750871440856,0.013835,2413.0,2412.8,4.14445549]
[1750871440996,0.013835,2413.0,2412.7,4.14460479]
[1750871441195,0.013835,2413.0,2412.6,4.9256519]
[1750871441496,0.013835,2413.0,2412.9,4.14439056]
[1750871441694,0.013835,2413.0,2412.8,4.14449917]
[1750871442306,0.013835,2413.0,2412.8,4.14453071]
[1750871442491,0.013835,2413.0,2412.7,4.35189045]
[1750871443195,0.013835,2413.0,2412.7,0.2072]
[1750871443596,1.7087441,2413.0,2412.5,6.859]
[1750871443796,4.15813546,2413.0,2412.6,0.2072]
[1750871444098,0.013835,2413.0,2412.6,4.3521056]
[1750871444317,0.013835,2413.0,2412.6,0.2072]
[1750871444639,4.15807129,2413.0,2412.6,0.2072]
[1750871444796,4.14441082,2412.9,2412.6,0.2072]
[1750871444998,4.57320638,2412.9,2412.6,0.2072]
[1750871445538,0.4287,2412.9,2412.6,0.2072]
[1750871446053,0.013835,2413.0,2412.6,4.35208358]
[1750871446250,0.013835,2413.0,2412.7,4.14461252]
[1750871446440,0.013835,2413.0,2412.7,4.35181252]
[1750871447051,0.013835,2413.0,2412.7,0.2072]
[1750871447644,0.013835,2413.0,2412.7,4.35192325]
[1750871447838,0.013835,2413.0,2412.8,4.14445173]
[1750871448050,0.013835,2413.0,2412.9,0.7735]
[1750871448256,0.013835,2413.0,2412.9,0.9807]
[1750871448670,0.013835,2413.0,2412.9,5.12509056]
[1750871449036,0.013835,2413.0,2412.9,0.9807]
[1750871450165,0.013835,2413.0,2412.9,5.12509056]
[1750871450554,0.013835,2413.0,2412.9,6.14522666]
[1750871450727,0.013835,2413.0,2412.9,6.48802666]
[1750871452352,0.013835,2413.0,2412.9,6.8057335]
[1750871454574,0.013835,2413.0,2412.9,5.93802666]
[1750871454745,0.013835,2413.0,2412.8,6.844]
[1750871454940,4.58686894,2413.0,2412.5,7.6691]
[1750871455155,0.442535,2413.0,2412.6,4.14489994]
[1750871455362,0.442535,2413.0,2412.6,4.1448802]
[1750871455676,0.442535,2413.0,2412.7,4.14460725]
[1750871455978,0.442535,2413.0,2412.6,4.14482812]
[1750871456146,0.442535,2413.0,2412.7,4.14473107]
[1750871456482,0.442535,2413.0,2412.6,1.59589442]
[1750871456663,4.58679274,2413.0,2412.5,11.81410223]
[1750871456975,0.442535,2413.0,2412.6,4.14490282]
[1750871457273,4.58676325,2413.0,2412.6,4.14490282]
[1750871457478,0.442535,2413.0,2412.6,4.14490041]
[1750871457680,0.442535,2413.0,2412.7,4.1446726]
[1750871457878,0.442535,2413.0,2412.6,4.14482629]
[1750871458173,1.49598255,2413.0,2412.2,0.7963]
[1750871458372,0.442535,2413.0,2412.1,6.853]
[1750871458574,4.14439056,2412.9,2411.9,4.94232873]
[1750871458747,4.14511239,2412.5,2412.0,4.14589686]
[1750871458943,5.94911239,2412.5,2412.0,4.14589686]
[1750871459146,0.4287,2412.8,2412.0,0.55]
[1750871459482,6.37728868,2412.8,2412.3,4.14530163]
[1750871459684,2.2327,2412.8,2412.3,4.14530163]
[1750871460087,6.37726304,2412.8,2412.3,4.14530163]
[1750871460379,2.2327,2412.8,2412.4,4.14524492]
[1750871460745,2.2327,2412.8,2412.5,0.2072]
[1750871460963,2.2327,2412.8,2412.4,4.14520791]
[1750871461168,6.58446954,2412.8,2412.3,4.3525422]
[1750871461398,4.14487214,2412.7,2412.3,0.2072]
[1750871461564,6.58454436,2412.8,2412.3,4.35261066]
[1750871461765,4.14473965,2412.7,2412.3,0.2072]
[1750871463064,2.4399,2412.8,2412.3,4.35262046]
[1750871463292,4.14481694,2412.7,2412.3,0.2072]
[1750871463487,6.58454795,2412.8,2412.3,4.35260966]
[1750871464293,2.4399,2412.8,2412.3,5.28437012]
[1750871464503,6.58447341,2412.8,2412.3,5.28438608]
[1750871464678,2.4399,2412.8,2412.4,4.14523748]
[1750871465070,6.58447695,2412.8,2412.3,5.28439777]
[1750871465267,4.14474179,2412.7,2412.3,1.13902277]
[1750871465473,4.14474179,2412.7,2412.3,5.28443774]
[1750871465688,6.5845572,2412.8,2412.3,5.28443774]
[1750871465887,4.1447533,2412.7,2412.3,0.2072]
[1750871466204,4.14501196,2412.6,2412.3,0.2072]
[1750871466497,4.14482862,2412.7,2412.3,0.2072]
[1750871467207,4.14473411,2412.7,2412.3,0.2072]
[1750871467391,6.58455727,2412.8,2412.3,4.35251182]
[1750871467594,4.14474947,2412.7,2412.3,0.2072]
[1750871467793,4.14474947,2412.7,2412.3,4.35260377]
[1750871468105,4.14478333,2412.7,2412.3,0.2072]
[1750871468276,4.14478333,2412.7,2412.3,4.35261536]
[1750871468680,4.14491583,2412.6,2412.3,0.2072]
[1750871470183,6.58458679,2412.8,2412.3,4.35259423]
[1750871470507,4.14475272,2412.7,2412.3,0.2072]
[1750871470700,6.58458679,2412.8,2412.3,0.2072]
[1750871470701,6.58455454,2412.8,2412.3,4.35260468]
[1750871470886,6.58455454,2412.8,2412.4,4.14524566]
[1750871471093,2.4399,2412.8,2412.4,4.14524566]
[1750871471308,6.5844698,2412.8,2412.4,4.90074566]
[1750871471612,4.14473978,2412.7,2412.3,4.35254132]
[1750871472111,4.14495326,2412.6,2412.3,0.2072]
[1750871472412,4.14480631,2412.7,2412.3,0.2072]
[1750871472617,6.58455534,2412.8,2412.3,4.35260445]
[1750871473509,2.4399,2412.8,2412.4,4.14523469]
[1750871474816,6.58448685,2412.8,2412.4,4.14523469]
[1750871475631,6.58448685,2412.8,2412.3,0.2072]
[1750871475632,4.14475264,2412.7,2412.3,4.35253377]
[1750871475989,6.58455047,2412.8,2412.3,4.35253377]
[1750871476491,6.15584179,2412.8,2412.3,0.2072]
[1750871476691,6.15584179,2412.8,2412.3,4.35250762]
[1750871476894,4.14474702,2412.7,2412.3,4.35250762]
[1750871477882,6.15585042,2412.8,2412.4,4.14524171]
[1750871478829,2.0112,2412.8,2412.4,4.14524171]
[1750871479038,0.013835,2413.0,2412.6,0.7518]
[1750871479237,0.013835,2413.0,2412.9,4.14439056]
[1750871479762,0.013835,2413.0,2412.7,0.2072]
[1750871479902,0.013835,2413.0,2412.7,4.3518606]
[1750871480108,0.013835,2413.0,2412.7,5.27671469]
[1750871480431,0.013835,2413.0,2412.7,1.13205409]
[1750871480627,0.013835,2413.0,2412.7,5.27670264]
[1750871480846,0.013835,2413.0,2412.9,4.14439056]
[1750871481012,0.013835,2413.0,2412.9,5.10229056]
[1750871481337,0.013835,2413.0,2412.9,6.11945167]
[1750871481698,0.013835,2413.0,2412.9,6.66945167]
[1750871483245,0.013835,2413.0,2412.9,13.50445167]
[1750871483822,0.013835,2413.0,2412.9,8.81006111]
[1750871484038,0.013835,2413.0,2412.9,4.14439056]
[1750871484232,0.013835,2413.0,2412.9,4.35159056]
[1750871485060,0.013835,2413.0,2412.9,0.2072]
[1750871486436,0.013835,2413.0,2412.9,4.35159056]
[1750871486672,0.013835,2413.0,2412.9,0.2072]
[1750871488958,0.013835,2413.0,2412.9,4.35159056]
[1750871489163,0.013835,2413.0,2412.9,0.2072]
[1750871489364,0.013835,2413.0,2412.9,5.9715211]
[1750871489949,0.013835,2413.0,2412.9,1.05683054]
[1750871490248,0.013835,2413.0,2412.9,0.2072]
[1750871490679,0.013835,2413.0,2412.9,4.35159056]
[1750871491091,0.013835,2413.0,2412.9,4.90159056]
[1750871491291,0.013835,2413.0,2412.9,5.65689056]
[1750871494107,0.013835,2413.0,2412.9,15.65689056]
[1750871494275,0.013835,2413.0,2412.9,17.63702736]
[1750871496110,0.013835,2413.0,2412.9,24.46602736]
[1750871496990,1.78568562,2413.9,2413.8,4.1428453]
[1750871497162,0.2064,2414.2,2413.9,0.55]
[1750871497366,0.4287,2414.5,2414.0,4.14241301]
[1750871497596,4.57044133,2414.5,2414.0,4.14241301]
[1750871497795,11.47928103,2414.5,2413.7,0.7528]
[1750871497994,11.47928103,2414.5,2413.7,4.14293506]
[1750871497995,4.14217768,2414.2,2413.7,4.14293506]
[1750871498175,5.93647314,2414.1,2413.5,6.83]
[1750871498372,1.794,2414.1,2413.5,6.83]
[1750871498697,1.794,2414.1,2413.7,4.14285757]
[1750871498902,1.794,2414.1,2413.5,6.83]
[1750871499214,1.794,2414.1,2413.7,4.14293535]
[1750871499712,1.794,2414.1,2413.8,4.14280673]
[1750871500177,1.794,2414.1,2413.9,4.14265009]
[1750871501413,1.794,2414.1,2413.7,4.14295596]
[1750871501695,1.794,2414.1,2413.8,4.14281822]
[1750871501894,1.794,2414.1,2413.7,4.14294989]
[1750871502283,4.14275347,2413.9,2413.5,6.83]
[1750871502485,4.14275347,2413.9,2413.3,4.14369288]
[1750871502486,0.4287,2413.9,2413.0,0.8242]
[1750871502685,0.4287,2413.5,2413.1,4.14394566]
[1750871502864,2.2227,2413.5,2413.1,4.14394566]
[1750871503767,2.2227,2413.5,2412.7,4.93959627]
[1750871503768,4.14386469,2413.3,2412.7,0.7949]
[1750871504001,0.4287,2413.3,2412.7,10.98073245]
[1750871504174,4.14387719,2413.2,2412.6,4.14479974]
[1750871504374,4.144068,2413.1,2412.6,4.14479974]
[1750871505094,4.14422008,2413.0,2412.5,11.80319648]
[1750871505302,4.14410401,2413.1,2412.6,4.14486793]
[1750871506108,4.14395008,2413.2,2412.7,4.14471077]
[1750871506402,4.57248676,2413.3,2412.8,4.14454743]
[1750871506770,4.14388013,2413.2,2412.7,4.14465086]
[1750871506979,4.14388013,2413.2,2412.5,9.25303806]
[1750871507280,4.14414052,2413.1,2412.8,0.2072]
[1750871507666,0.4287,2412.9,2412.8,0.2072]
[1750871508298,2.2227,2412.9,2412.8,0.2072]
[1750871512102,2.2207,2412.9,2412.8,0.2072]
[1750871512303,6.36509056,2412.9,2412.8,0.2072]
[1750871512486,0.2072,2412.8,2412.4,4.35244152]
[1750871512802,4.35176858,2412.8,2412.4,0.2072]
[1750871512983,0.2072,2412.8,2412.4,4.35240063]
[1750871513583,4.35179428,2412.8,2412.4,0.2072]
[1750871513895,0.2072,2412.8,2412.4,4.35244164]
[1750871515102,0.2072,2412.8,2412.4,0.2072]
[1750871515316,0.2072,2412.8,2412.4,4.35244531]
[1750871515473,0.2072,2412.8,2412.5,4.1450549]
[1750871515674,0.2072,2412.8,2412.7,4.14473411]
[1750871515976,0.2072,2412.8,2412.6,4.14479711]
[1750871516277,5.9362656,2413.0,2412.6,0.2072]
[1750871516467,4.1444049,2412.9,2412.6,0.2072]
[1750871517099,5.9363089,2413.0,2412.6,0.2072]
[1750871517681,1.792,2413.0,2412.6,4.35208073]
[1750871518007,1.792,2413.0,2412.7,4.14473138]
[1750871518209,1.792,2413.0,2412.6,0.2072]
[1750871518387,1.792,2413.0,2412.6,0.76450394]
[1750871518588,1.792,2413.0,2412.7,4.14471841]
[1750871520105,1.792,2413.0,2412.6,4.90931047]
[1750871520611,0.2072,2413.1,2412.9,4.14422496]
[1750871520906,1.792,2413.5,2412.9,0.9639]
[1750871521106,3.11171,2413.5,2413.1,0.2064]
[1750871521319,7.2551474,2413.5,2413.1,0.2064]
[1750871521623,5.9354374,2413.5,2413.1,4.35044456]
[1750871521794,1.792,2413.5,2413.1,4.35044456]
[1750871521995,1.792,2413.5,2413.1,4.35041201]
[1750871522213,1.792,2413.5,2413.4,0.2064]
[1750871523291,0.4287,2413.4,2413.1,0.2064]
[1750871523497,0.4287,2413.4,2413.1,4.3503722]
[1750871524095,0.4287,2413.4,2413.2,4.14386456]
[1750871524312,1.792,2413.5,2413.2,4.14387535]
[1750871524516,1.792,2413.5,2413.4,4.14353194]
[1750871524821,10.77,2413.7,2413.6,4.14318859]
[1750871525005,10.77,2413.7,2413.5,4.14327778]
[1750871525397,10.77,2413.7,2413.4,5.17862363]
[1750871525606,10.77,2413.7,2413.6,4.14318859]
[1750871525914,10.769,2413.7,2413.6,4.14318859]
[1750871526119,1.792,2413.8,2413.4,0.82871623]
[1750871526414,1.792,2413.8,2413.3,4.91852403]
[1750871526580,0.4287,2413.7,2413.1,7.6109]
[1750871526782,4.57172104,2413.7,2413.2,4.14374749]
[1750871527027,0.4287,2413.7,2413.0,4.14408002]
[1750871527310,4.57259667,2413.2,2412.7,4.91953852]
[1750871527485,1.792,2413.1,2412.7,5.82604558]
[1750871527689,1.792,2413.1,2412.8,4.14442737]
[1750871528293,1.792,2413.1,2412.7,1.68133948]
[1750871528515,5.93606856,2413.1,2412.6,4.14475939]
[1750871529606,1.792,2413.1,2412.8,4.14440131]
[1750871529811,1.792,2413.1,2412.9,4.14436875]
[1750871530008,1.792,2413.1,2412.6,4.14487738]
[1750871530208,1.792,2413.1,2412.6,4.14478722]
[1750871530415,5.93608326,2413.1,2412.6,4.14478722]
[1750871531008,1.792,2413.1,2412.7,4.14471438]
[1750871531393,5.93605021,2413.1,2412.6,4.14482227]
[1750871531800,4.14423764,2413.0,2412.5,4.91988404]
[1750871532011,4.14423764,2413.0,2412.5,4.14498404]
[1750871532216,5.93612658,2413.1,2412.6,4.14487279]
[1750871532430,4.14426507,2413.0,2412.5,5.03489526]
[1750871532605,5.93614036,2413.1,2412.7,4.14473025]
[1750871532808,1.792,2413.1,2412.3,5.48750895]
[1750871533123,1.792,2413.1,2412.4,1.31342939]
[1750871533310,1.792,2413.1,2412.7,4.14457998]
[1750871534018,1.792,2413.0,2412.9,4.14431294]
[1750871534410,0.4287,2413.2,2413.0,4.14421784]
[1750871534729,1.792,2413.2,2413.0,4.14421784]
[1750871535126,1.792,2413.2,2412.7,0.8273]
[1750871535332,1.792,2413.2,2412.7,4.97197602]
[1750871535630,0.4287,2413.8,2413.1,0.55]
[1750871535806,0.4287,2413.8,2413.4,4.14341861]
[1750871536136,0.4287,2413.8,2413.5,4.1433312]
[1750871536342,0.4287,2413.8,2413.6,4.1431751]
[1750871536548,0.4287,2413.8,2413.5,4.34968396]
[1750871536854,0.4287,2413.8,2413.7,4.14301694]
[1750871537037,1.9984,2413.9,2413.7,4.14293156]
[1750871537216,1.792,2413.9,2413.7,4.14293156]
[1750871538440,1.792,2413.9,2413.6,0.2064]
[1750871538834,1.792,2413.9,2413.6,4.34958517]
[1750871539154,1.792,2413.9,2413.6,0.2064]
[1750871539356,1.782,2413.9,2413.6,0.2064]
[1750871540148,1.782,2413.9,2413.4,4.14341766]
[1750871540149,0.4287,2413.8,2413.4,4.14341766]
[1750871540448,0.6351,2413.8,2413.4,4.14341766]
[1750871541128,0.6351,2413.8,2413.5,4.14335471]
[1750871541330,0.6351,2413.8,2413.6,4.14316148]
[1750871542047,0.6351,2413.8,2413.3,0.2064]
[1750871542239,1.782,2413.9,2413.6,4.14309327]
[1750871542945,1.782,2413.9,2413.5,0.2064]
[1750871542946,1.797,2413.9,2413.5,4.34975787]
[1750871543159,2.4321,2414.0,2413.8,4.1428453]
[1750871543318,2.4321,2414.0,2413.7,4.14292276]
[1750871543519,2.4321,2414.0,2413.8,4.14282283]
[1750871544264,2.4321,2414.0,2413.7,4.14288962]
[1750871544767,2.4321,2414.0,2413.6,4.14314266]
[1750871544932,2.4321,2414.0,2413.7,4.14301637]
[1750871545457,2.4321,2414.0,2413.6,4.14309038]
[1750871547959,6.57464968,2414.0,2413.5,4.34968982]
[1750871548271,6.57467561,2414.0,2413.5,4.34967576]
[1750871548434,6.57467561,2414.0,2413.4,4.14339058]
[1750871548435,4.1427569,2413.9,2413.4,4.14339058]
[1750871548634,0.2064,2413.7,2413.4,4.14350008]
[1750871549065,0.4287,2413.6,2413.4,4.14350008]
[1750871549267,0.4287,2413.6,2413.2,4.35020582]
[1750871549268,4.57189009,2413.6,2413.2,0.2064]
[1750871549473,6.41828757,2413.5,2413.0,4.1441351]
[1750871549674,2.48122901,2413.5,2413.1,4.14403984]
[1750871549838,2.48122901,2413.5,2413.0,0.2072]
[1750871549839,2.0034,2413.5,2413.2,4.14387362]
[1750871550257,2.0034,2413.5,2413.0,4.35133321]
[1750871550569,2.0034,2413.5,2413.2,4.14384507]
[1750871550985,2.0034,2413.5,2413.3,4.14367093]
[1750871551273,2.0034,2413.5,2413.4,4.14353194]
[1750871551779,2.0034,2413.5,2413.3,4.14360926]
[1750871552984,2.0034,2413.5,2413.4,4.14353194]
[1750871553679,2.0034,2413.5,2413.3,4.14360725]
[1750871553885,2.0034,2413.5,2413.1,4.14403695]
[1750871554085,2.0034,2413.5,2413.0,4.3513963]
[1750871554386,2.0034,2413.5,2413.2,4.14371889]
[1750871554609,2.0034,2413.5,2413.3,4.14369717]
[1750871554957,2.0034,2413.5,2413.2,4.14378293]
[1750871555185,2.0034,2413.5,2413.3,4.14362238]
[1750871556085,2.0034,2413.5,2413.2,4.14378182]
[1750871556277,2.0034,2413.5,2413.2,4.14386908]
[1750871556590,2.0034,2413.5,2413.3,4.14367731]
[1750871556774,2.0034,2413.5,2413.2,4.14379759]
[1750871556974,2.0034,2413.5,2413.3,4.14369776]
[1750871558961,2.0034,2413.5,2413.1,4.14394169]
[1750871559192,2.0034,2413.5,2413.3,4.14362927]
[1750871559379,2.0034,2413.5,2413.2,4.14386172]
[1750871559582,0.4287,2413.4,2412.7,8.09452423]
[1750871559765,0.4287,2413.4,2413.2,4.14380054]
[1750871559766,0.2064,2413.3,2413.2,4.14380054]
[1750871559974,0.2064,2413.3,2413.0,4.14412555]
[1750871560693,0.2064,2413.3,2413.1,4.14403999]
[1750871561288,0.2064,2413.3,2413.0,4.14415321]
[1750871561694,0.2064,2413.3,2413.1,4.1440451]
[1750871562083,0.2064,2413.3,2413.0,4.14415414]